[Event "Titled Tuesday Blitz November 15 Early 2022"]
[White "Fedoseev, Vladimir"]
[Black "Svane, Frederik"]
[WhiteFideId "24130737"]
[BlackFideId "12923044"]
[WhiteElo "2726"]
[BlackElo "2466"]
[Result "1/2-1/2"]
[Round "10"]
[TimeControl "180+1"]
[Date "2022.11.15"]
[WhiteClock "0:00:05"]
[BlackClock "0:00:13"]

1. e4 {[%clk 0:02:59]}  c5 {[%clk 0:03:00]} 2. Nf3 {[%clk 0:02:59]}  d6 {[%clk 0:03:00]} 3. d4 {[%clk 0:02:59]}  cxd4 {[%clk 0:03:00]} 4. Nxd4 {[%clk 0:03:00]}  Nf6 {[%clk 0:03:01]} 5. Nc3 {[%clk 0:03:00]}  a6 {[%clk 0:03:01]} 6. Be2 {[%clk 0:03:00]}  e6 {[%clk 0:03:01]} 7. f4 {[%clk 0:02:59]}  Be7 {[%clk 0:02:59]} 8. Be3 {[%clk 0:02:57]}  Nc6 {[%clk 0:03:00]} 9. Qd2 {[%clk 0:02:54]}  Bd7 {[%clk 0:02:56]} 10. Bf3 {[%clk 0:02:47]}  Rc8 {[%clk 0:02:49]} 11. Nxc6 {[%clk 0:02:25]}  Bxc6 {[%clk 0:02:48]} 12. Bd4 {[%clk 0:02:22]}  Qa5 {[%clk 0:02:30]} 13. O-O {[%clk 0:02:17]}  O-O {[%clk 0:02:25]} 14. Rf2 {[%clk 0:02:15]}  e5 {[%clk 0:02:21]} 15. Nd5 {[%clk 0:02:12]}  Qd8 {[%clk 0:01:54]} 16. fxe5 {[%clk 0:02:07]}  dxe5 {[%clk 0:01:54]} 17. Bxe5 {[%clk 0:02:07]}  Bxd5 {[%clk 0:01:15]} 18. exd5 {[%clk 0:02:05]}  Bc5 {[%clk 0:01:15]} 19. Bd4 {[%clk 0:02:04]}  Qb6 {[%clk 0:01:15]} 20. Rd1 {[%clk 0:02:01]}  Rfd8 {[%clk 0:01:13]} 21. c4 {[%clk 0:01:57]}  Ne8 {[%clk 0:01:05]} 22. b3 {[%clk 0:01:51]}  Nd6 {[%clk 0:01:04]} 23. Re2 {[%clk 0:01:31]}  Re8 {[%clk 0:01:02]} 24. Bxc5 {[%clk 0:01:26]}  Qxc5+ {[%clk 0:00:58]} 25. Qd4 {[%clk 0:01:26]}  b6 {[%clk 0:00:56]} 26. Rxe8+ {[%clk 0:01:21]}  Rxe8 {[%clk 0:00:56]} 27. Qxc5 {[%clk 0:01:18]}  bxc5 {[%clk 0:00:56]} 28. Kf2 {[%clk 0:01:19]}  f5 {[%clk 0:00:52]} 29. Re1 {[%clk 0:01:15]}  Rxe1 {[%clk 0:00:46]} 30. Kxe1 {[%clk 0:01:15]}  a5 {[%clk 0:00:43]} 31. Kd2 {[%clk 0:01:15]}  Kf7 {[%clk 0:00:43]} 32. Kc3 {[%clk 0:01:13]}  Ke7 {[%clk 0:00:40]} 33. a3 {[%clk 0:01:12]}  Nf7 {[%clk 0:00:30]} 34. b4 {[%clk 0:01:06]}  axb4+ {[%clk 0:00:30]} 35. axb4 {[%clk 0:01:06]}  Kd6 {[%clk 0:00:31]} 36. Be2 {[%clk 0:01:02]}  Ne5 {[%clk 0:00:30]} 37. Kb3 {[%clk 0:00:56]}  f4 {[%clk 0:00:19]} 38. Ka4 {[%clk 0:00:50]}  cxb4 {[%clk 0:00:19]} 39. Kxb4 {[%clk 0:00:50]}  Nd7 {[%clk 0:00:20]} 40. Bd3 {[%clk 0:00:46]}  h6 {[%clk 0:00:17]} 41. Bf5 {[%clk 0:00:44]}  Nc5 {[%clk 0:00:16]} 42. h4 {[%clk 0:00:42]}  g5 {[%clk 0:00:16]} 43. h5 {[%clk 0:00:40]}  Na6+ {[%clk 0:00:16]} 44. Kb5 {[%clk 0:00:38]}  Nc5 {[%clk 0:00:15]} 45. Ka5 {[%clk 0:00:35]}  Nb7+ {[%clk 0:00:13]} 46. Kb4 {[%clk 0:00:29]}  Nc5 {[%clk 0:00:14]} 47. Bg4 {[%clk 0:00:26]}  Na6+ {[%clk 0:00:12]} 48. Kc3 {[%clk 0:00:25]}  Ke5 {[%clk 0:00:13]} 49. Bc8 {[%clk 0:00:16]}  Nc5 {[%clk 0:00:13]} 50. Kb4 {[%clk 0:00:16]}  Nd3+ {[%clk 0:00:13]} 51. Kb5 {[%clk 0:00:16]}  Kd6 {[%clk 0:00:13]} 52. Bf5 {[%clk 0:00:11]}  Nc5 {[%clk 0:00:14]} 53. Bg4 {[%clk 0:00:08]}  Nb3 {[%clk 0:00:13]} 54. Kb6 {[%clk 0:00:08]}  Nc5 {[%clk 0:00:13]} 55. Bf5 {[%clk 0:00:08]}  Na4+ {[%clk 0:00:12]} 56. Kb5 {[%clk 0:00:05]}  Nc5 {[%clk 0:00:13]} 1/2-1/2


[Site "https://www.chess.com"]

[Event "Titled Tuesday Blitz November 15 Early 2022"]
[White "Fernandez Garcia, Gumersindo"]
[Black "Kaminski, Victor"]
[WhiteFideId "24516740"]
[BlackFideId "1131630"]
[WhiteElo "2140"]
[BlackElo "2181"]
[Result "1-0"]
[Round "10"]
[TimeControl "180+1"]
[Date "2022.11.16"]
[WhiteClock "0:00:35"]
[BlackClock "0:00:01"]

1. c4 {[%clk 0:03:00]}  e6 {[%clk 0:02:58]} 2. Nf3 {[%clk 0:02:59]}  Nf6 {[%clk 0:02:44]} 3. g3 {[%clk 0:03:00]}  d5 {[%clk 0:02:43]} 4. Bg2 {[%clk 0:03:01]}  Be7 {[%clk 0:02:43]} 5. O-O {[%clk 0:03:01]}  O-O {[%clk 0:02:43]} 6. d4 {[%clk 0:03:02]}  dxc4 {[%clk 0:02:41]} 7. Qc2 {[%clk 0:03:02]}  b5 {[%clk 0:02:39]} 8. Ne5 {[%clk 0:02:57]}  c6 {[%clk 0:02:29]} 9. Nxc6 {[%clk 0:02:51]}  Nxc6 {[%clk 0:02:28]} 10. Bxc6 {[%clk 0:02:52]}  Rb8 {[%clk 0:02:28]} 11. Bf4 {[%clk 0:02:52]}  Bd6 {[%clk 0:02:25]} 12. Bxd6 {[%clk 0:02:50]}  Qxd6 {[%clk 0:02:26]} 13. Bf3 {[%clk 0:02:51]}  Qxd4 {[%clk 0:02:22]} 14. Nc3 {[%clk 0:02:50]}  a6 {[%clk 0:02:15]} 15. Rfd1 {[%clk 0:02:47]}  Qc5 {[%clk 0:02:10]} 16. Rd2 {[%clk 0:02:35]}  Bb7 {[%clk 0:01:58]} 17. Bxb7 {[%clk 0:02:34]}  Rxb7 {[%clk 0:01:59]} 18. Rad1 {[%clk 0:02:34]}  h6 {[%clk 0:01:51]} 19. a4 {[%clk 0:02:26]}  Rc7 {[%clk 0:01:43]} 20. Rd8 {[%clk 0:02:21]}  Rc8 {[%clk 0:01:39]} 21. R8d6 {[%clk 0:02:19]}  b4 {[%clk 0:01:29]} 22. Ne4 {[%clk 0:02:14]}  Nxe4 {[%clk 0:01:27]} 23. Qxe4 {[%clk 0:02:15]}  a5 {[%clk 0:01:22]} 24. Rd7 {[%clk 0:02:05]}  c3 {[%clk 0:01:08]} 25. bxc3 {[%clk 0:02:03]}  bxc3 {[%clk 0:01:05]} 26. Rc1 {[%clk 0:01:49]}  Qb4 {[%clk 0:01:01]} 27. Qf3 {[%clk 0:01:38]}  Qxa4 {[%clk 0:00:57]} 28. Ra7 {[%clk 0:01:26]}  Qb4 {[%clk 0:00:38]} 29. Kg2 {[%clk 0:01:16]}  a4 {[%clk 0:00:25]} 30. Qf4 {[%clk 0:01:12]}  Qxf4 {[%clk 0:00:17]} 31. gxf4 {[%clk 0:01:13]}  Rc4 {[%clk 0:00:17]} 32. e3 {[%clk 0:01:12]}  Rb8 {[%clk 0:00:12]} 33. Kf3 {[%clk 0:01:00]}  c2 {[%clk 0:00:05]} 34. Ke2 {[%clk 0:01:00]}  Rb1 {[%clk 0:00:06]} 35. Kd2 {[%clk 0:01:00]}  Rxc1 {[%clk 0:00:06]} 36. Kxc1 {[%clk 0:01:00]}  g5 {[%clk 0:00:06]} 37. fxg5 {[%clk 0:01:00]}  hxg5 {[%clk 0:00:07]} 38. Ra5 {[%clk 0:00:59]}  f6 {[%clk 0:00:07]} 39. Ra7 {[%clk 0:01:00]}  Rh4 {[%clk 0:00:04]} 40. Kxc2 {[%clk 0:00:52]}  Rxh2 {[%clk 0:00:04]} 41. Rxa4 {[%clk 0:00:51]}  Rxf2+ {[%clk 0:00:04]} 42. Kd3 {[%clk 0:00:52]}  Kf7 {[%clk 0:00:04]} 43. Ke4 {[%clk 0:00:52]}  Rh2 {[%clk 0:00:03]} 44. Ra7+ {[%clk 0:00:50]}  Kg6 {[%clk 0:00:03]} 45. Ra8 {[%clk 0:00:51]}  Rh4+ {[%clk 0:00:03]} 46. Kf3 {[%clk 0:00:51]}  Rb4 {[%clk 0:00:03]} 47. Ra7 {[%clk 0:00:48]}  Kf5 {[%clk 0:00:04]} 48. Ra5+ {[%clk 0:00:48]}  e5 {[%clk 0:00:04]} 49. Ra8 {[%clk 0:00:49]}  g4+ {[%clk 0:00:04]} 50. Kg3 {[%clk 0:00:48]}  Rb3 {[%clk 0:00:04]} 51. Kf2 {[%clk 0:00:48]}  Kg5 {[%clk 0:00:02]} 52. Rg8+ {[%clk 0:00:48]}  Kf5 {[%clk 0:00:02]} 53. Ra8 {[%clk 0:00:48]}  Rc3 {[%clk 0:00:03]} 54. Rb8 {[%clk 0:00:48]}  Rc2+ {[%clk 0:00:02]} 55. Kg3 {[%clk 0:00:47]}  Re2 {[%clk 0:00:03]} 56. Rb3 {[%clk 0:00:47]}  Ke4 {[%clk 0:00:02]} 57. Rb4+ {[%clk 0:00:45]}  Kxe3 {[%clk 0:00:02]} 58. Kxg4 {[%clk 0:00:46]}  Rf2 {[%clk 0:00:01]} 59. Kg3 {[%clk 0:00:44]}  Rf3+ {[%clk 0:00:01]} 60. Kg2 {[%clk 0:00:43]}  Rf4 {[%clk 0:00:02]} 61. Rb3+ {[%clk 0:00:43]}  Ke4 {[%clk 0:00:03]} 62. Kg3 {[%clk 0:00:44]}  Kf5 {[%clk 0:00:04]} 63. Rb8 {[%clk 0:00:43]}  Rg4+ {[%clk 0:00:05]} 64. Kf3 {[%clk 0:00:43]}  Rg5 {[%clk 0:00:06]} 65. Rf8 {[%clk 0:00:42]}  Rh5 {[%clk 0:00:06]} 66. Kg3 {[%clk 0:00:42]}  Rh7 {[%clk 0:00:06]} 67. Ra8 {[%clk 0:00:42]}  Rc7 {[%clk 0:00:06]} 68. Ra4 {[%clk 0:00:42]}  Rd7 {[%clk 0:00:06]} 69. Rb4 {[%clk 0:00:42]}  Rd3+ {[%clk 0:00:06]} 70. Kf2 {[%clk 0:00:42]}  e4 {[%clk 0:00:06]} 71. Rb6 {[%clk 0:00:41]}  Ke5 {[%clk 0:00:06]} 72. Ke2 {[%clk 0:00:39]}  f5 {[%clk 0:00:06]} 73. Ra6 {[%clk 0:00:38]}  Kf4 {[%clk 0:00:05]} 74. Rh6 {[%clk 0:00:38]}  Rb3 {[%clk 0:00:05]} 75. Rh4+ {[%clk 0:00:38]}  Ke5 {[%clk 0:00:05]} 76. Rh8 {[%clk 0:00:38]}  Rb2+ {[%clk 0:00:05]} 77. Ke1 {[%clk 0:00:38]}  f4 {[%clk 0:00:04]} 78. Re8+ {[%clk 0:00:38]}  Kd4 {[%clk 0:00:04]} 79. Ra8 {[%clk 0:00:36]}  Ke3 {[%clk 0:00:01]} 80. Ra3+ {[%clk 0:00:36]}  Kd4 {[%clk 0:00:02]} 81. Ra4+ {[%clk 0:00:35]}  Ke5 {[%clk 0:00:02]} 82. Ra5+ {[%clk 0:00:35]}  Kf6 {[%clk 0:00:02]} 83. Rc5 {[%clk 0:00:35]}  Ra2 {[%clk 0:00:01]} 84. Rb5 {[%clk 0:00:35]} 1-0


[Site "https://www.chess.com"]

[Event "Titled Tuesday Blitz November 15 Early 2022"]
[White "Fernandez Siles, Luis"]
[Black "Omariev, Maksim"]
[WhiteFideId "2209420"]
[BlackFideId "4193423"]
[WhiteElo "2186"]
[BlackElo "2505"]
[Result "0-1"]
[Round "10"]
[TimeControl "180+1"]
[Date "2022.11.16"]
[WhiteClock "0:00:01"]
[BlackClock "0:00:05"]

1. d4 {[%clk 0:03:00]}  h5 {[%clk 0:03:00]} 2. e4 {[%clk 0:02:55]}  h4 {[%clk 0:03:01]} 3. h3 {[%clk 0:02:54]}  c6 {[%clk 0:03:01]} 4. c4 {[%clk 0:02:49]}  d5 {[%clk 0:03:01]} 5. exd5 {[%clk 0:02:47]}  cxd5 {[%clk 0:03:02]} 6. Nc3 {[%clk 0:02:48]}  Nf6 {[%clk 0:03:01]} 7. Nf3 {[%clk 0:02:46]}  Be6 {[%clk 0:02:43]} 8. Bg5 {[%clk 0:02:15]}  dxc4 {[%clk 0:02:35]} 9. Bxh4 {[%clk 0:02:09]}  Nd5 {[%clk 0:02:12]} 10. Bg3 {[%clk 0:01:59]}  Nc6 {[%clk 0:02:07]} 11. Rc1 {[%clk 0:01:51]}  Nxc3 {[%clk 0:02:00]} 12. bxc3 {[%clk 0:01:38]}  Qd5 {[%clk 0:01:27]} 13. Rb1 {[%clk 0:01:31]}  O-O-O {[%clk 0:01:16]} 14. Be2 {[%clk 0:01:15]}  g5 {[%clk 0:01:13]} 15. Ne5 {[%clk 0:01:14]}  Bf5 {[%clk 0:00:03]} 16. Rb2 {[%clk 0:00:50]}  Nxe5 {[%clk 0:00:02]} 17. Bxe5 {[%clk 0:00:48]}  f6 {[%clk 0:00:03]} 18. Bg3 {[%clk 0:00:41]}  e5 {[%clk 0:00:03]} 19. Qa4 {[%clk 0:00:37]}  a6 {[%clk 0:00:03]} 20. O-O {[%clk 0:00:27]}  exd4 {[%clk 0:00:02]} 21. Bf3 {[%clk 0:00:26]}  Be4 {[%clk 0:00:02]} 22. Bxe4 {[%clk 0:00:14]}  Qxe4 {[%clk 0:00:03]} 23. cxd4 {[%clk 0:00:05]}  Qc6 {[%clk 0:00:04]} 24. Qxc6+ {[%clk 0:00:01]}  bxc6 {[%clk 0:00:04]} 25. Rc1 {[%clk 0:00:01]}  Rxd4 {[%clk 0:00:05]} 0-1


[Site "https://www.chess.com"]

[Event "Titled Tuesday Blitz November 15 Early 2022"]
[White "Galchenko, Matvey"]
[Black "Mendonca, Mateus Nakajo"]
[WhiteFideId "24175480"]
[BlackFideId "2110954"]
[WhiteElo "2847"]
[BlackElo "2622"]
[Result "1-0"]
[Round "10"]
[TimeControl "180+1"]
[Date "2022.11.16"]
[WhiteClock "0:01:10"]
[BlackClock "0:00:22"]

1. Nf3 {[%clk 0:02:55]}  d5 {[%clk 0:02:58]} 2. c4 {[%clk 0:02:55]}  e6 {[%clk 0:02:57]} 3. e3 {[%clk 0:02:56]}  Nf6 {[%clk 0:02:56]} 4. Nc3 {[%clk 0:02:56]}  c6 {[%clk 0:02:56]} 5. b3 {[%clk 0:02:56]}  Nbd7 {[%clk 0:02:55]} 6. Bb2 {[%clk 0:02:57]}  Bd6 {[%clk 0:02:56]} 7. Qc2 {[%clk 0:02:57]}  O-O {[%clk 0:02:56]} 8. Be2 {[%clk 0:02:57]}  Re8 {[%clk 0:02:53]} 9. Rg1 {[%clk 0:02:57]}  e5 {[%clk 0:02:51]} 10. g4 {[%clk 0:02:57]}  e4 {[%clk 0:02:51]} 11. Nd4 {[%clk 0:02:57]}  Bxh2 {[%clk 0:02:48]} 12. Rh1 {[%clk 0:02:58]}  Be5 {[%clk 0:02:48]} 13. g5 {[%clk 0:02:58]}  c5 {[%clk 0:02:41]} 14. gxf6 {[%clk 0:02:31]}  cxd4 {[%clk 0:02:40]} 15. exd4 {[%clk 0:02:31]}  Bxd4 {[%clk 0:02:40]} 16. fxg7 {[%clk 0:02:31]}  Ne5 {[%clk 0:02:27]} 17. O-O-O {[%clk 0:02:22]}  dxc4 {[%clk 0:02:01]} 18. Nxe4 {[%clk 0:02:19]}  Bxb2+ {[%clk 0:01:51]} 19. Kxb2 {[%clk 0:02:04]}  Nd3+ {[%clk 0:01:36]} 20. Bxd3 {[%clk 0:02:02]}  cxd3 {[%clk 0:01:37]} 21. Qc4 {[%clk 0:01:57]}  b5 {[%clk 0:01:12]} 22. Qc6 {[%clk 0:01:56]}  Qd4+ {[%clk 0:00:56]} 23. Qc3 {[%clk 0:01:18]}  Qxe4 {[%clk 0:00:51]} 24. Rde1 {[%clk 0:01:16]}  b4 {[%clk 0:00:30]} 25. Qc4 {[%clk 0:01:10]}  Qxe1 {[%clk 0:00:21]} 26. Rxe1 {[%clk 0:01:11]}  Rxe1 {[%clk 0:00:21]} 27. Qc6 {[%clk 0:01:11]}  Rb8 {[%clk 0:00:22]} 28. Qd6 {[%clk 0:01:10]} 1-0


[Site "https://www.chess.com"]

[Event "Titled Tuesday Blitz November 15 Early 2022"]
[White "Golubev, Mikhail"]
[Black "Begunov, Konstantin"]
[WhiteFideId "14100983"]
[BlackFideId "4118510"]
[WhiteElo "2374"]
[BlackElo "2140"]
[Result "0-1"]
[Round "10"]
[TimeControl "180+1"]
[Date "2022.11.16"]
[WhiteClock "0:00:03"]
[BlackClock "0:00:23"]

1. e4 {[%clk 0:03:00]}  c5 {[%clk 0:02:59]} 2. Nf3 {[%clk 0:03:00]}  d6 {[%clk 0:03:00]} 3. d4 {[%clk 0:03:00]}  cxd4 {[%clk 0:03:01]} 4. Nxd4 {[%clk 0:03:00]}  Nf6 {[%clk 0:03:01]} 5. Nc3 {[%clk 0:03:00]}  a6 {[%clk 0:03:02]} 6. Bc4 {[%clk 0:02:59]}  e6 {[%clk 0:03:02]} 7. Bb3 {[%clk 0:02:59]}  Be7 {[%clk 0:03:02]} 8. f4 {[%clk 0:02:58]}  Qc7 {[%clk 0:03:02]} 9. f5 {[%clk 0:02:55]}  e5 {[%clk 0:02:57]} 10. Nde2 {[%clk 0:02:55]}  b5 {[%clk 0:02:52]} 11. Nd5 {[%clk 0:02:53]}  Nxd5 {[%clk 0:02:50]} 12. Qxd5 {[%clk 0:02:51]}  O-O {[%clk 0:02:39]} 13. Qxa8 {[%clk 0:02:45]}  Nc6 {[%clk 0:02:30]} 14. Nc3 {[%clk 0:02:17]}  Bb7 {[%clk 0:02:29]} 15. Nd5 {[%clk 0:02:17]}  Qd7 {[%clk 0:02:28]} 16. Qxf8+ {[%clk 0:01:47]}  Bxf8 {[%clk 0:02:21]} 17. Be3 {[%clk 0:01:38]}  Na5 {[%clk 0:02:17]} 18. O-O-O {[%clk 0:01:37]}  Nxb3+ {[%clk 0:01:40]} 19. cxb3 {[%clk 0:01:37]}  Bxd5 {[%clk 0:01:38]} 20. Rxd5 {[%clk 0:01:36]}  g6 {[%clk 0:01:38]} 21. g4 {[%clk 0:01:30]}  Qd8 {[%clk 0:01:27]} 22. h4 {[%clk 0:01:14]}  gxf5 {[%clk 0:01:23]} 23. gxf5 {[%clk 0:01:11]}  Kh8 {[%clk 0:01:22]} 24. Bg5 {[%clk 0:01:03]}  Be7 {[%clk 0:01:19]} 25. Bxe7 {[%clk 0:00:57]}  Qxe7 {[%clk 0:01:19]} 26. Kb1 {[%clk 0:00:57]}  Kg7 {[%clk 0:01:08]} 27. a3 {[%clk 0:00:56]}  Kh6 {[%clk 0:01:06]} 28. h5 {[%clk 0:00:47]}  Kg5 {[%clk 0:01:00]} 29. Rdd1 {[%clk 0:00:31]}  Kh6 {[%clk 0:00:49]} 30. Ka2 {[%clk 0:00:30]}  a5 {[%clk 0:00:49]} 31. a4 {[%clk 0:00:24]}  bxa4 {[%clk 0:00:48]} 32. bxa4 {[%clk 0:00:25]}  f6 {[%clk 0:00:42]} 33. Rd5 {[%clk 0:00:24]}  Qb7 {[%clk 0:00:39]} 34. b3 {[%clk 0:00:10]}  Qb4 {[%clk 0:00:38]} 35. Rhd1 {[%clk 0:00:09]}  Kg5 {[%clk 0:00:36]} 36. Rxd6 {[%clk 0:00:08]}  Qxe4 {[%clk 0:00:34]} 37. Rg1+ {[%clk 0:00:08]}  Kxf5 {[%clk 0:00:32]} 38. Rf1+ {[%clk 0:00:07]}  Kg5 {[%clk 0:00:31]} 39. Rdxf6 {[%clk 0:00:07]}  Qc2+ {[%clk 0:00:30]} 40. Ka3 {[%clk 0:00:07]}  e4 {[%clk 0:00:26]} 41. R6f5+ {[%clk 0:00:06]}  Kg4 {[%clk 0:00:26]} 42. R5f4+ {[%clk 0:00:05]}  Kg3 {[%clk 0:00:26]} 43. Rf7 {[%clk 0:00:05]}  h6 {[%clk 0:00:23]} 44. Rg7+ {[%clk 0:00:05]}  Kh2 {[%clk 0:00:23]} 45. Rfg1 {[%clk 0:00:03]}  Qc5+ {[%clk 0:00:21]} 46. Kb2 {[%clk 0:00:03]}  Qxg1 {[%clk 0:00:22]} 47. Rxg1 {[%clk 0:00:02]}  Kxg1 {[%clk 0:00:23]} 48. Kc3 {[%clk 0:00:02]}  e3 {[%clk 0:00:22]} 49. Kd3 {[%clk 0:00:01]}  Kf2 {[%clk 0:00:22]} 50. b4 {[%clk 0:00:02]}  axb4 {[%clk 0:00:21]} 51. a5 {[%clk 0:00:02]}  e2 {[%clk 0:00:22]} 52. a6 {[%clk 0:00:03]}  e1=Q {[%clk 0:00:23]} 53. a7 {[%clk 0:00:04]}  Qe8 {[%clk 0:00:22]} 54. a8=Q {[%clk 0:00:03]}  Qxa8 {[%clk 0:00:23]} 0-1


[Site "https://www.chess.com"]

[Event "Titled Tuesday Blitz November 15 Early 2022"]
[White "Goroshkov, Maksym"]
[Black "Forgacs, Attila Jr."]
[WhiteFideId "14142716"]
[BlackFideId "773654"]
[WhiteElo "2257"]
[BlackElo "2168"]
[Result "1-0"]
[Round "10"]
[TimeControl "180+1"]
[Date "2022.11.16"]
[WhiteClock "0:00:21"]
[BlackClock "0:00:20"]

1. e4 {[%clk 0:02:59]}  e5 {[%clk 0:02:59]} 2. d4 {[%clk 0:02:58]}  exd4 {[%clk 0:02:58]} 3. c3 {[%clk 0:02:59]}  d5 {[%clk 0:02:59]} 4. exd5 {[%clk 0:02:58]}  Qxd5 {[%clk 0:02:59]} 5. cxd4 {[%clk 0:02:58]}  Nc6 {[%clk 0:02:54]} 6. Nf3 {[%clk 0:02:58]}  Nf6 {[%clk 0:02:53]} 7. Nc3 {[%clk 0:02:57]}  Bb4 {[%clk 0:02:53]} 8. Be2 {[%clk 0:02:57]}  Bg4 {[%clk 0:02:45]} 9. O-O {[%clk 0:02:57]}  Qd7 {[%clk 0:02:45]} 10. d5 {[%clk 0:02:47]}  Ne7 {[%clk 0:02:31]} 11. Ne5 {[%clk 0:02:41]}  Bxe2 {[%clk 0:02:20]} 12. Qxe2 {[%clk 0:02:41]}  Qf5 {[%clk 0:02:08]} 13. Qb5+ {[%clk 0:02:37]}  c6 {[%clk 0:01:40]} 14. dxc6 {[%clk 0:02:17]}  bxc6 {[%clk 0:01:41]} 15. Qxb4 {[%clk 0:02:14]}  Qxe5 {[%clk 0:01:41]} 16. Bf4 {[%clk 0:02:13]}  Qf5 {[%clk 0:01:04]} 17. Rfe1 {[%clk 0:02:06]}  c5 {[%clk 0:01:04]} 18. Qb5+ {[%clk 0:01:57]}  Kf8 {[%clk 0:01:03]} 19. Bd6 {[%clk 0:01:56]}  Re8 {[%clk 0:00:57]} 20. Rxe7 {[%clk 0:01:33]}  Rxe7 {[%clk 0:00:57]} 21. Bxe7+ {[%clk 0:01:33]}  Kxe7 {[%clk 0:00:57]} 22. Re1+ {[%clk 0:01:33]}  Kd8 {[%clk 0:00:46]} 23. Qa5+ {[%clk 0:01:07]}  Kc8 {[%clk 0:00:38]} 24. Qxa7 {[%clk 0:00:35]}  Qf4 {[%clk 0:00:27]} 25. Qa6+ {[%clk 0:00:29]}  Kb8 {[%clk 0:00:25]} 26. Qb6+ {[%clk 0:00:28]}  Kc8 {[%clk 0:00:24]} 27. Nb5 {[%clk 0:00:24]}  Rd8 {[%clk 0:00:20]} 28. Na7+ {[%clk 0:00:21]}  Kd7 {[%clk 0:00:20]} 29. Qc6# {[%clk 0:00:21]} 1-0


[Site "https://www.chess.com"]

[Event "Titled Tuesday Blitz November 15 Early 2022"]
[White "Grandelius, Nils"]
[Black "Fernandez De La Vara, Arnaldo"]
[WhiteFideId "1710400"]
[BlackFideId "3518388"]
[WhiteElo "2617"]
[BlackElo "2387"]
[Result "1-0"]
[Round "10"]
[TimeControl "180+1"]
[Date "2022.11.15"]
[WhiteClock "0:00:47"]
[BlackClock "0:01:12"]

1. c4 {[%clk 0:03:00]}  c5 {[%clk 0:03:00]} 2. Nf3 {[%clk 0:03:00]}  Nc6 {[%clk 0:03:01]} 3. e3 {[%clk 0:03:01]}  Nf6 {[%clk 0:03:01]} 4. Nc3 {[%clk 0:03:00]}  g6 {[%clk 0:03:01]} 5. d4 {[%clk 0:03:00]}  cxd4 {[%clk 0:03:01]} 6. exd4 {[%clk 0:03:01]}  d5 {[%clk 0:03:00]} 7. cxd5 {[%clk 0:03:02]}  Nxd5 {[%clk 0:03:01]} 8. Qb3 {[%clk 0:03:02]}  Nxc3 {[%clk 0:03:01]} 9. Bc4 {[%clk 0:03:02]}  Nd5 {[%clk 0:03:00]} 10. Bxd5 {[%clk 0:03:02]}  e6 {[%clk 0:03:00]} 11. Bxc6+ {[%clk 0:03:02]}  bxc6 {[%clk 0:03:01]} 12. O-O {[%clk 0:03:02]}  Qd5 {[%clk 0:02:59]} 13. Qc3 {[%clk 0:02:55]}  Bd6 {[%clk 0:02:58]} 14. Bg5 {[%clk 0:02:47]}  O-O {[%clk 0:02:44]} 15. Rac1 {[%clk 0:02:43]}  Bb7 {[%clk 0:02:42]} 16. Qe3 {[%clk 0:02:27]}  f6 {[%clk 0:02:40]} 17. Bf4 {[%clk 0:02:26]}  Be7 {[%clk 0:02:35]} 18. b3 {[%clk 0:02:22]}  Rac8 {[%clk 0:02:27]} 19. Rfe1 {[%clk 0:02:21]}  Rf7 {[%clk 0:02:27]} 20. Qxe6 {[%clk 0:02:16]}  Rd8 {[%clk 0:02:07]} 21. Qxd5 {[%clk 0:02:04]}  Rxd5 {[%clk 0:02:06]} 22. Be3 {[%clk 0:02:04]}  Bb4 {[%clk 0:01:58]} 23. Red1 {[%clk 0:02:03]}  Rfd7 {[%clk 0:01:58]} 24. Bd2 {[%clk 0:01:33]}  Bxd2 {[%clk 0:01:50]} 25. Rxd2 {[%clk 0:01:32]}  c5 {[%clk 0:01:51]} 26. Rcd1 {[%clk 0:01:32]}  cxd4 {[%clk 0:01:40]} 27. Rxd4 {[%clk 0:01:33]}  Rxd4 {[%clk 0:01:40]} 28. Nxd4 {[%clk 0:01:28]}  a5 {[%clk 0:01:40]} 29. f3 {[%clk 0:01:27]}  a4 {[%clk 0:01:40]} 30. bxa4 {[%clk 0:01:23]}  Bc6 {[%clk 0:01:37]} 31. a5 {[%clk 0:01:22]}  Ba4 {[%clk 0:01:36]} 32. Rd3 {[%clk 0:01:18]}  Rd5 {[%clk 0:01:37]} 33. Kf2 {[%clk 0:01:17]}  Kf7 {[%clk 0:01:31]} 34. a6 {[%clk 0:01:08]}  Rd7 {[%clk 0:01:25]} 35. a7 {[%clk 0:00:48]}  Rxa7 {[%clk 0:01:18]} 36. Ra3 {[%clk 0:00:48]}  Ke7 {[%clk 0:01:12]} 37. Nc6+ {[%clk 0:00:47]} 1-0


[Site "https://www.chess.com"]